[Event "Couzeix rapide 9 rondes cadences multiples"]
[Site "Couzeix Chess Club, France"]
[Date "2019.03.10"]
[Round "2.2"]
[White "Boisseau, David"]
[Black "Dubreuil, Remy"]
[Result "1-0"]
[TimeControl "5'+10''pm,  7'+10''pm, 10'+10''pm,"]
[WhiteElo "1803"]
[BlackElo "1714"]

1. d4 {[%clk 00:05:17]} {[%emt 00:00:03]} Nf6 {[%clk 00:05:18]} {[%emt
00:00:02]} 2. c3 {[%clk 00:05:25]} {[%emt 00:00:01]} g6 {[%clk 00:05:26]}
{[%emt 00:00:02]} 3. Bf4 {[%clk 00:05:33]} {[%emt 00:00:02]} Bg7 {[%clk
00:05:35]} {[%emt 00:00:01]} 4. Nf3 {[%clk 00:05:41]} {[%emt 00:00:03]} d6
{[%clk 00:05:43]} 5. Nbd2 {[%clk 00:05:49]} {[%emt 00:00:01]} Nc6 {[%clk
00:05:51]} {[%emt 00:00:02]} 6. e3 {[%clk 00:05:56]} {[%emt 00:00:02]} Bg4
{[%clk 00:05:56]} {[%emt 00:00:05]} 7. Bb5 {[%clk 00:06:00]} {[%emt 00:00:05]}
a6 {[%clk 00:06:04]} {[%emt 00:00:04]} 8. Bxc6+ {[%clk 00:06:08]} {[%emt
00:00:02]} bxc6 {[%clk 00:06:08]} {[%emt 00:00:06]} 9. Qa4 {[%clk 00:06:15]}
{[%emt 00:00:03]} Bd7 {[%clk 00:06:08]} {[%emt 00:00:09]} 10. Qc2 {[%clk
00:06:16]} {[%emt 00:00:09]} O-O {[%clk 00:06:14]} {[%emt 00:00:05]} 11. O-O
{[%clk 00:06:23]} {[%emt 00:00:02]} Rb8 {[%clk 00:06:17]} {[%emt 00:00:07]} 12.
e4 {[%clk 00:06:30]} {[%emt 00:00:03]} Nh5 {[%clk 00:06:17]} {[%emt 00:00:10]}
13. Be3 {[%clk 00:06:35]} {[%emt 00:00:05]} e5 {[%clk 00:06:16]} {[%emt
00:00:11]} 14. dxe5 {[%clk 00:06:37]} {[%emt 00:00:08]} dxe5 {[%clk 00:06:24]}
{[%emt 00:00:02]} 15. Rfd1 {[%clk 00:06:40]} {[%emt 00:00:07]} Qe7 {[%clk
00:06:27]} {[%emt 00:00:07]} 16. b4 {[%clk 00:06:46]} {[%emt 00:00:04]} Rfe8
{[%clk 00:06:24]} {[%emt 00:00:13]} 17. Bc5 {[%clk 00:06:49]} {[%emt 00:00:08]}
Qf6 {[%clk 00:06:18]} {[%emt 00:00:16]} 18. h3 {[%clk 00:05:38]} {[%emt
00:01:20]} Be6 {[%clk 00:05:56]} {[%emt 00:00:31]} 19. Nb3 {[%clk 00:05:11]}
{[%emt 00:00:38]} Bxh3 {[%clk 00:05:48]} {[%emt 00:00:18]} 20. Be3 {[%clk
00:03:51]} {[%emt 00:01:30]} h6 {[%clk 00:05:25]} {[%emt 00:00:33]} 21. Nxe5
{[%clk 00:02:59]} {[%emt 00:01:03]} Qxe5 {[%clk 00:05:06]} {[%emt 00:00:28]} 22.
gxh3 {[%clk 00:02:46]} {[%emt 00:00:22]} Nf4 {[%clk 00:05:07]} {[%emt
00:00:09]} 23. Bxf4 {[%clk 00:02:42]} {[%emt 00:00:14]} Qxf4 {[%clk 00:05:14]}
{[%emt 00:00:02]} 24. Re1 {[%clk 00:02:13]} {[%emt 00:00:40]} Be5 {[%clk
00:05:08]} {[%emt 00:00:16]} 25. Qd3 {[%clk 00:01:44]} {[%emt 00:00:40]} Rbd8
{[%clk 00:04:50]} {[%emt 00:00:27]} 26. Qe3 {[%clk 00:01:53]} Qf6 {[%clk
00:02:27]} {[%emt 00:02:34]} 27. Rac1 {[%clk 00:01:57]} {[%emt 00:00:06]} Bf4
{[%clk 00:02:34]} {[%emt 00:00:04]} 28. Qf3 {[%clk 00:02:05]} {[%emt 00:00:02]}
Qg5+ {[%clk 00:02:41]} {[%emt 00:00:03]} 1-0

[Event "Couzeix rapide 9 rondes cadences multiples"]
[Site "Couzeix Chess Club, France"]
[Date "2019.03.10"]
[Round "2.3"]
[White "Girel, Joseph"]
[Black "Mace, Emmanuel"]
[Result "0-1"]
[TimeControl "5'+10''pm,  7'+10''pm, 10'+10''pm,"]
[WhiteElo "2220"]
[BlackElo "1724"]

1. d4 {[%clk 00:05:18]} {[%emt 00:00:03]} d5 {[%clk 00:05:19]} 2. c4 {[%clk
00:05:26]} {[%emt 00:00:01]} c6 {[%clk 00:05:29]} 3. cxd5 {[%clk 00:05:33]}
{[%emt 00:00:03]} cxd5 {[%clk 00:05:38]} {[%emt 00:00:02]} 4. Nc3 {[%clk
00:05:41]} Nf6 {[%clk 00:05:47]} {[%emt 00:00:01]} 5. Nf3 {[%clk 00:05:50]}
{[%emt 00:00:01]} Nc6 {[%clk 00:05:56]} {[%emt 00:00:01]} 6. Bf4 {[%clk
00:05:56]} {[%emt 00:00:03]} a6 {[%clk 00:06:05]} {[%emt 00:00:01]} 7. e3
{[%clk 00:06:04]} {[%emt 00:00:02]} e6 {[%clk 00:06:09]} {[%emt 00:00:07]} 8.
Bd3 {[%clk 00:06:10]} {[%emt 00:00:03]} h6 {[%clk 00:06:16]} {[%emt 00:00:03]}
9. O-O {[%clk 00:06:16]} {[%emt 00:00:04]} Be7 {[%clk 00:06:19]} {[%emt
00:00:07]} 10. Rc1 {[%clk 00:06:25]} {[%emt 00:00:02]} O-O {[%clk 00:06:26]}
{[%emt 00:00:04]} 11. Na4 {[%clk 00:06:21]} {[%emt 00:00:13]} Nh5 {[%clk
00:05:44]} {[%emt 00:00:52]} 12. Bg3 {[%clk 00:05:53]} {[%emt 00:00:38]} Nxg3
{[%clk 00:05:51]} {[%emt 00:00:02]} 13. hxg3 {[%clk 00:06:02]} {[%emt
00:00:01]} f5 {[%clk 00:04:34]} {[%emt 00:01:27]} 14. Nc5 {[%clk 00:06:06]}
{[%emt 00:00:07]} Qd6 {[%clk 00:01:47]} {[%emt 00:02:57]} 15. Qb3 {[%clk
00:05:05]} {[%emt 00:01:10]} b6 {[%clk 00:01:27]} {[%emt 00:00:31]} 16. Na4
{[%clk 00:04:43]} {[%emt 00:00:32]} Nb4 {[%clk 00:01:19]} {[%emt 00:00:18]} 17.
Be2 {[%clk 00:04:31]} {[%emt 00:00:22]} Rb8 {[%clk 00:01:18]} {[%emt 00:00:12]}
18. Ne5 {[%clk 00:04:24]} {[%emt 00:00:16]} Bd7 {[%clk 00:01:14]} {[%emt
00:00:14]} 19. a3 {[%clk 00:04:23]} {[%emt 00:00:12]} Bxa4 {[%clk 00:01:21]}
{[%emt 00:00:04]} 20. Qxa4 {[%clk 00:04:25]} {[%emt 00:00:08]} b5 {[%clk
00:01:29]} {[%emt 00:00:02]} 21. Qxb4 {[%clk 00:04:30]} {[%emt 00:00:04]} Qxb4
{[%clk 00:00:12]} {[%emt 00:01:28]} 22. axb4 {[%clk 00:04:37]} {[%emt
00:00:03]} Bxb4 {[%clk 00:00:20]} {[%emt 00:00:01]} 23. Nc6 {[%clk 00:04:45]}
{[%emt 00:00:02]} 0-1

[Event "Couzeix rapide 9 rondes cadences multiples"]
[Site "Couzeix Chess Club, France"]
[Date "2019.03.10"]
[Round "2.4"]
[White "Bonnichon, Arnaud"]
[Black "Jackson, Edgar"]
[Result "1-0"]
[TimeControl "5'+10''pm,  7'+10''pm, 10'+10''pm,"]
[WhiteElo "1605"]
[BlackElo "1701"]

1. e4 {[%clk 00:05:18]} {[%emt 00:00:03]} c5 {[%clk 00:05:19]} 2. Bc4 {[%clk
00:05:25]} {[%emt 00:00:02]} e6 {[%clk 00:05:28]} {[%emt 00:00:02]} 3. Nf3
{[%clk 00:05:32]} {[%emt 00:00:02]} Nc6 {[%clk 00:05:37]} {[%emt 00:00:02]} 4.
O-O {[%clk 00:05:36]} {[%emt 00:00:06]} a6 {[%clk 00:05:46]} {[%emt 00:00:01]}
5. d4 {[%clk 00:05:37]} {[%emt 00:00:09]} cxd4 {[%clk 00:05:54]} {[%emt
00:00:02]} 6. Nxd4 {[%clk 00:05:44]} {[%emt 00:00:02]} Qc7 {[%clk 00:06:03]} 7.
Be3 {[%clk 00:05:40]} {[%emt 00:00:14]} Nf6 {[%clk 00:06:11]} {[%emt 00:00:03]}
8. Nd2 {[%clk 00:05:47]} {[%emt 00:00:02]} b5 {[%clk 00:05:53]} {[%emt
00:00:29]} 9. Bd3 {[%clk 00:05:48]} {[%emt 00:00:09]} Bb7 {[%clk 00:05:56]}
{[%emt 00:00:07]} 10. N2f3 {[%clk 00:05:07]} {[%emt 00:00:50]} d5 {[%clk
00:05:06]} {[%emt 00:01:01]} 11. Nxc6 {[%clk 00:05:06]} {[%emt 00:00:11]} Bxc6
{[%clk 00:04:45]} {[%emt 00:00:31]} 12. e5 {[%clk 00:05:11]} {[%emt 00:00:05]}
Nd7 {[%clk 00:04:02]} {[%emt 00:00:53]} 13. Bf4 {[%clk 00:05:04]} {[%emt
00:00:17]} Be7 {[%clk 00:03:52]} {[%emt 00:00:20]} 14. Re1 {[%clk 00:04:45]}
{[%emt 00:00:30]} Rc8 {[%clk 00:03:52]} {[%emt 00:00:10]} 15. Re2 {[%clk
00:04:26]} {[%emt 00:00:29]} h6 {[%clk 00:03:49]} {[%emt 00:00:13]} 16. Qd2
{[%clk 00:04:21]} {[%emt 00:00:14]} Nb6 {[%clk 00:02:14]} {[%emt 00:01:46]} 17.
b3 {[%clk 00:04:20]} {[%emt 00:00:12]} Nd7 {[%clk 00:02:07]} {[%emt 00:00:17]}
18. Bg3 {[%clk 00:03:41]} {[%emt 00:00:48]} Bc5 {[%clk 00:02:00]} {[%emt
00:00:17]} 19. Qf4 {[%clk 00:03:31]} {[%emt 00:00:20]} Be7 {[%clk 00:01:19]}
{[%emt 00:00:51]} 20. Qg4 {[%clk 00:03:14]} {[%emt 00:00:26]} g5 {[%clk
00:01:04]} {[%emt 00:00:24]} 21. Nd4 {[%clk 00:03:00]} {[%emt 00:00:24]} h5
{[%clk 00:00:56]} {[%emt 00:00:19]} 22. Qf3 {[%clk 00:03:01]} {[%emt 00:00:08]}
h4 {[%clk 00:01:00]} {[%emt 00:00:06]} 23. Bxh4 gxh4 24. Qf4 {[%clk 00:03:12]}
h3 {[%clk 00:00:59]} {[%emt 00:00:18]} 25. Qg4 {[%clk 00:03:01]} {[%emt
00:00:21]} Nf8 {[%clk 00:00:52]} {[%emt 00:00:17]} 26. Re3 {[%clk 00:02:36]}
{[%emt 00:00:36]} Rh4 {[%clk 00:00:47]} {[%emt 00:00:15]} 27. Qg7 {[%clk
00:02:01]} {[%emt 00:00:44]} Rxd4 {[%clk 00:00:44]} {[%emt 00:00:14]} 28. Rxh3
{[%clk 00:02:09]} {[%emt 00:00:02]} Bc5 {[%clk 00:00:25]} {[%emt 00:00:29]} 29.
Rh8 {[%clk 00:01:59]} {[%emt 00:00:20]} Rf4 {[%clk 00:00:32]} {[%emt 00:00:03]}
30. Rf1 {[%clk 00:01:57]} {[%emt 00:00:12]} Bd4 {[%clk 00:00:29]} {[%emt
00:00:13]} 31. Rxf8+ {[%clk 00:01:47]} {[%emt 00:00:20]} Ke7 {[%clk 00:00:30]}
{[%emt 00:00:10]} 32. Rxc8 {[%clk 00:01:56]} {[%emt 00:00:01]} Qxc8 {[%clk
00:00:36]} {[%emt 00:00:04]} 33. Qg5+ {[%clk 00:01:59]} {[%emt 00:00:06]} Kd7
{[%clk 00:00:25]} {[%emt 00:00:21]} 34. Qxf4 {[%clk 00:02:07]} {[%emt
00:00:01]} Bb6 {[%clk 00:00:31]} {[%emt 00:00:04]} 35. Qxf7+ {[%clk 00:02:11]}
{[%emt 00:00:05]} Kd8 {[%clk 00:00:41]} 36. Bg6 {[%clk 00:02:00]} {[%emt
00:00:22]} Qd7 {[%emt 00:00:50]} 37. h4 {[%clk 00:01:33]} Bd4 {[%clk 00:00:34]}
{[%emt 00:00:13]} 38. Qf4 {[%clk 00:01:36]} {[%emt 00:00:08]} Bb2 {[%clk
00:00:28]} {[%emt 00:00:16]} 39. h5 {[%clk 00:01:42]} {[%emt 00:00:04]} Qg7
{[%clk 00:00:32]} {[%emt 00:00:05]} 40. Re1 {[%clk 00:01:27]} {[%emt 00:00:26]}
b4 {[%clk 00:00:32]} {[%emt 00:00:10]} 41. Qg5+ {[%clk 00:00:49]} {[%emt
00:00:48]} Kc7 {[%clk 00:00:28]} {[%emt 00:00:15]} 42. h6 {[%clk 00:00:57]}
{[%emt 00:00:02]} Qh8 {[%clk 00:00:21]} {[%emt 00:00:17]} 43. Qe7+ {[%clk
00:01:01]} {[%emt 00:00:06]} Kb6 {[%clk 00:00:30]} 44. Qxb4+ {[%clk 00:01:08]}
{[%emt 00:00:02]} 1-0

[Event "Couzeix rapide 9 rondes cadences multiples"]
[Site "Couzeix Chess Club, France"]
[Date "2019.03.10"]
[Round "3.1"]
[White "Dubreuil, Remy"]
[Black "Bonnichon, Arnaud"]
[Result "1-0"]
[TimeControl "5'+10''pm,  7'+10''pm, 10'+10''pm,"]
[WhiteElo "1714"]
[BlackElo "1605"]

1. b3 {[%clk 00:00:00]} {[%emt 00:01:10]} Nf6 {[%clk 00:00:00]} {[%emt
00:00:04]} 2. Bb2 {[%clk 00:00:00]} Nc6 {[%clk 00:00:00]} {[%emt 00:00:10]} 3.
Nf3 {[%clk 00:00:00]} {[%emt 00:00:04]} d5 {[%clk 00:00:00]} {[%emt 00:00:06]}
4. e3 {[%clk 00:00:00]} Bf5 {[%clk 00:00:00]} {[%emt 00:00:11]} 5. Bb5 {[%clk
00:05:03]} {[%emt 00:00:28]} Bd7 {[%clk 00:05:14]} {[%emt 00:00:07]} 6. O-O
{[%clk 00:05:07]} {[%emt 00:00:06]} a6 {[%clk 00:05:21]} {[%emt 00:00:03]} 7.
Bxc6 {[%clk 00:05:06]} {[%emt 00:00:11]} Bxc6 {[%clk 00:05:24]} {[%emt
00:00:08]} 8. d4 {[%clk 00:05:13]} {[%emt 00:00:02]} e6 {[%clk 00:05:29]}
{[%emt 00:00:05]} 9. Nc3 {[%clk 00:05:08]} {[%emt 00:00:15]} Bd6 {[%clk
00:05:35]} {[%emt 00:00:04]} 10. Ne2 {[%clk 00:05:12]} {[%emt 00:00:06]} Bb5
{[%clk 00:05:37]} {[%emt 00:00:08]} 11. Re1 {[%clk 00:05:14]} {[%emt 00:00:07]}
Bxe2 {[%clk 00:05:39]} {[%emt 00:00:08]} 12. Qxe2 {[%clk 00:05:20]} {[%emt
00:00:04]} O-O {[%clk 00:05:46]} {[%emt 00:00:03]} 13. c4 {[%clk 00:05:21]}
{[%emt 00:00:10]} c6 {[%clk 00:05:52]} {[%emt 00:00:04]} 14. Red1 {[%clk
00:04:53]} {[%emt 00:00:37]} Rc8 {[%clk 00:05:56]} {[%emt 00:00:07]} 15. c5
{[%clk 00:04:39]} {[%emt 00:00:24]} Bc7 {[%clk 00:06:01]} {[%emt 00:00:05]} 16.
b4 {[%emt 00:00:34]} Ra8 {[%clk 00:05:39]} 17. a4 {[%clk 00:04:55]} {[%emt
00:00:02]} Qd7 {[%clk 00:05:35]} {[%emt 00:00:13]} 18. Ba3 {[%clk 00:04:28]}
{[%emt 00:00:37]} Ne4 {[%clk 00:05:21]} {[%emt 00:00:24]} 19. Qb2 {[%clk
00:04:15]} {[%emt 00:00:22]} f6 {[%clk 00:05:23]} {[%emt 00:00:09]} 20. b5
{[%clk 00:04:10]} {[%emt 00:00:15]} axb5 {[%clk 00:05:26]} {[%emt 00:00:08]} 21.
axb5 {[%clk 00:04:16]} {[%emt 00:00:04]} Ba5 {[%clk 00:05:09]} {[%emt
00:00:25]} 22. bxc6 {[%clk 00:02:11]} {[%emt 00:02:15]} bxc6 {[%clk 00:04:30]}
{[%emt 00:00:50]} 23. Bb4 {[%clk 00:02:18]} {[%emt 00:00:03]} Rfb8 {[%clk
00:04:35]} {[%emt 00:00:05]} 24. Rdb1 {[%clk 00:02:04]} {[%emt 00:00:23]} Rxb4
{[%clk 00:04:40]} {[%emt 00:00:06]} 25. Rxa5 {[%clk 00:02:04]} {[%emt
00:00:10]} Rab8 {[%clk 00:04:42]} {[%emt 00:00:09]} 26. Qxb4 {[%clk 00:02:08]}
{[%emt 00:00:06]} Rxb4 {[%clk 00:04:47]} {[%emt 00:00:05]} 27. Rxb4 {[%clk
00:02:15]} {[%emt 00:00:02]} Qc7 {[%clk 00:04:54]} {[%emt 00:00:03]} 28. Ra8+
{[%clk 00:02:18]} {[%emt 00:00:06]} Kf7 {[%clk 00:05:02]} {[%emt 00:00:02]} 29.
Rbb8 {[%clk 00:02:11]} {[%emt 00:00:17]} Kg6 {[%clk 00:04:42]} {[%emt
00:00:31]} 30. Rb6 {[%clk 00:02:12]} {[%emt 00:00:07]} Nc3 {[%clk 00:04:45]}
{[%emt 00:00:07]} 31. Raa6 {[%clk 00:02:04]} {[%emt 00:00:15]} h6 {[%clk
00:04:34]} {[%emt 00:00:26]} 32. g3 {[%clk 00:02:04]} {[%emt 00:00:09]} Ne4
{[%clk 00:03:04]} {[%emt 00:01:41]} 33. Kg2 {[%clk 00:01:57]} {[%emt 00:00:16]}
Qc8 {[%clk 00:03:07]} {[%emt 00:00:07]} 34. Rxc6 {[%clk 00:01:51]} {[%emt
00:00:15]} Qb7 {[%clk 00:03:16]} {[%emt 00:00:02]} 35. Rcb6 {[%clk 00:01:49]}
{[%emt 00:00:12]} Qd7 {[%clk 00:03:19]} {[%emt 00:00:07]} 36. c6 {[%clk
00:01:47]} {[%emt 00:00:12]} Qc7 {[%clk 00:03:16]} {[%emt 00:00:13]} 37. Rb7
{[%clk 00:01:47]} {[%emt 00:11:57]} Qc8 {[%clk 00:03:15]} 38. Raa7 {[%clk
00:01:30]} Nd6 {[%clk 00:03:06]} 39. Rxg7+ {[%clk 00:01:32]} Kf5 {[%clk
00:03:15]} 40. Nd2 {[%clk 00:01:23]} e5 {[%clk 00:03:05]} 41. g4+ {[%clk
00:01:31]} Ke6 {[%clk 00:03:14]} 42. Rge7# {[%clk 00:01:39]} 1-0

[Event "Couzeix rapide 9 rondes cadences multiples"]
[Site "Couzeix Chess Club, France"]
[Date "2019.03.10"]
[Round "3.2"]
[White "Lougnon, Florian"]
[Black "Girel, Joseph"]
[Result "0-1"]
[TimeControl "5'+10''pm,  7'+10''pm, 10'+10''pm,"]
[WhiteElo "1783"]
[BlackElo "2220"]

1. b3 {[%clk 00:05:20]} g6 {[%clk 00:05:19]} {[%emt 00:00:02]} 2. Bb2 {[%clk
00:05:29]} Nf6 {[%clk 00:05:28]} 3. e3 {[%clk 00:05:38]} Bg7 {[%clk 00:05:36]}
{[%emt 00:00:01]} 4. Nf3 {[%clk 00:05:48]} O-O {[%clk 00:05:44]} {[%emt
00:00:02]} 5. d4 {[%clk 00:05:56]} {[%emt 00:00:02]} c5 {[%clk 00:05:50]}
{[%emt 00:00:04]} 6. Bd3 {[%clk 00:06:00]} {[%emt 00:00:07]} b6 {[%clk
00:05:59]} {[%emt 00:00:01]} 7. O-O {[%clk 00:06:08]} {[%emt 00:00:02]} Bb7
{[%clk 00:06:08]} 8. Nbd2 {[%clk 00:06:15]} {[%emt 00:00:03]} d6 {[%clk
00:06:13]} {[%emt 00:00:04]} 9. c4 {[%clk 00:06:21]} {[%emt 00:00:03]} Nbd7
{[%clk 00:06:22]} {[%emt 00:00:01]} 10. d5 {[%clk 00:06:18]} {[%emt 00:00:14]}
e5 {[%clk 00:06:29]} {[%emt 00:00:03]} 11. dxe6 {[%clk 00:05:46]} {[%emt
00:00:42]} fxe6 {[%clk 00:06:37]} {[%emt 00:00:02]} 12. Ng5 {[%clk 00:05:35]}
{[%emt 00:00:21]} Qe7 {[%clk 00:06:34]} {[%emt 00:00:12]} 13. Qc2 {[%clk
00:05:43]} {[%emt 00:00:02]} d5 {[%clk 00:06:11]} {[%emt 00:00:32]} 14. cxd5
{[%clk 00:04:17]} {[%emt 00:01:36]} exd5 {[%clk 00:06:17]} {[%emt 00:00:04]} 15.
e4 {[%clk 00:03:59]} {[%emt 00:00:29]} h6 {[%clk 00:06:08]} {[%emt 00:00:19]}
16. Ngf3 {[%clk 00:03:50]} {[%emt 00:00:19]} dxe4 {[%clk 00:06:08]} {[%emt
00:00:10]} 17. Nxe4 {[%clk 00:03:39]} {[%emt 00:00:21]} Bxe4 {[%clk 00:06:06]}
{[%emt 00:00:12]} 18. Bxe4 {[%clk 00:03:04]} {[%emt 00:00:45]} Qxe4 {[%clk
00:06:13]} {[%emt 00:00:03]} 19. Qd2 {[%clk 00:02:13]} {[%emt 00:01:02]} Qd5
{[%clk 00:06:05]} {[%emt 00:00:17]} 20. Qc2 {[%clk 00:02:16]} {[%emt 00:00:08]}
Qf5 {[%clk 00:06:08]} {[%emt 00:00:06]} 21. Qc4+ {[%clk 00:02:08]} {[%emt
00:00:19]} Kh7 {[%clk 00:06:17]} {[%emt 00:00:01]} 22. Rad1 {[%clk 00:02:10]}
{[%emt 00:00:08]} Rad8 {[%clk 00:06:10]} {[%emt 00:00:17]} 23. Rfe1 {[%clk
00:02:07]} {[%emt 00:00:14]} Rfe8 {[%clk 00:06:14]} {[%emt 00:00:06]} 24. Qf7
{[%clk 00:01:48]} {[%emt 00:00:29]} Rxe1+ {[%clk 00:06:21]} {[%emt 00:00:03]}
25. Rxe1 {[%clk 00:01:57]} Rf8 {[%clk 00:06:27]} {[%emt 00:00:05]} 26. Qe7
{[%clk 00:01:52]} {[%emt 00:00:14]} Re8 {[%clk 00:06:31]} {[%emt 00:00:06]} 27.
Qf7 {[%clk 00:01:48]} {[%emt 00:00:15]} Rxe1+ {[%clk 00:06:32]} {[%emt
00:00:09]} 28. Nxe1 {[%clk 00:01:58]} Qb1 {[%clk 00:06:35]} {[%emt 00:00:08]}
0-1

[Event "Couzeix rapide 9 rondes cadences multiples"]
[Site "Couzeix Chess Club, France"]
[Date "2019.03.10"]
[Round "3.3"]
[White "Bonneau, Alain"]
[Black "Seddik, Houssem"]
[Result "0-1"]
[TimeControl "5'+10''pm,  7'+10''pm, 10'+10''pm,"]
[WhiteElo "1548"]
[BlackElo "1492"]

1. e4 {[%clk 00:05:17]} {[%emt 00:00:02]} d5 {[%clk 00:05:20]} 2. exd5 {[%clk
00:05:24]} {[%emt 00:00:03]} Nf6 {[%clk 00:05:30]} 3. d4 {[%clk 00:05:32]}
{[%emt 00:00:02]} Bg4 {[%clk 00:05:39]} 4. Be2 {[%clk 00:05:39]} {[%emt
00:00:03]} Bxe2 {[%clk 00:05:48]} {[%emt 00:00:02]} 5. Nxe2 {[%clk 00:05:47]}
{[%emt 00:00:02]} Qxd5 {[%clk 00:05:57]} 6. c4 {[%clk 00:05:55]} {[%emt
00:00:03]} Qxg2 {[%clk 00:05:50]} {[%emt 00:00:17]} 7. Rg1 {[%clk 00:06:03]}
{[%emt 00:00:01]} Qh3 {[%clk 00:04:36]} {[%emt 00:01:25]} 8. Bf4 {[%clk
00:06:06]} {[%emt 00:00:08]} Qd7 {[%clk 00:04:39]} {[%emt 00:00:08]} 9. Nbc3
{[%clk 00:06:08]} {[%emt 00:00:07]} Nc6 {[%clk 00:04:47]} {[%emt 00:00:02]} 10.
d5 {[%clk 00:06:10]} {[%emt 00:00:08]} Nd8 {[%clk 00:03:44]} {[%emt 00:01:13]}
11. Nb5 {[%clk 00:06:11]} {[%emt 00:00:09]} e5 {[%clk 00:03:00]} {[%emt
00:00:54]} 12. Bxe5 {[%clk 00:06:18]} {[%emt 00:00:03]} Bd6 {[%clk 00:03:07]}
{[%emt 00:00:03]} 13. Nxd6+ {[%clk 00:05:55]} {[%emt 00:00:32]} cxd6 {[%clk
00:03:15]} {[%emt 00:00:03]} 14. Bc3 {[%clk 00:05:56]} {[%emt 00:00:09]} Qf5
{[%clk 00:02:58]} {[%emt 00:00:27]} 15. Ng3 {[%clk 00:05:57]} {[%emt 00:00:09]}
Qf4 {[%clk 00:01:58]} {[%emt 00:01:10]} 16. Qe2+ {[%clk 00:05:56]} {[%emt
00:00:11]} Kd7 {[%clk 00:02:07]} {[%emt 00:00:02]} 17. Bd2 {[%clk 00:05:17]}
{[%emt 00:00:49]} Qh4 {[%clk 00:01:35]} {[%emt 00:00:42]} 18. O-O-O {[%clk
00:05:05]} {[%emt 00:00:21]} Re8 {[%clk 00:01:45]} 19. Qf3 {[%clk 00:05:09]}
{[%emt 00:00:06]} Qxc4+ {[%clk 00:01:48]} {[%emt 00:00:06]} 20. Kb1 {[%clk
00:05:17]} {[%emt 00:00:02]} Qxd5 {[%clk 00:01:37]} {[%emt 00:00:22]} 21. Qg4+
{[%clk 00:05:25]} {[%emt 00:00:02]} Nxg4 {[%clk 00:01:45]} {[%emt 00:00:02]}
0-1